[Event "Titled Tuesday Blitz April 05 Late 2022"]
[White "Hernandez Bermudez, Ulises Eduardo"]
[Black "Brizzi, Milagros Tatiana"]
[WhiteFideId "3902510"]
[BlackFideId "128350"]
[WhiteElo "2056"]
[BlackElo "1844"]
[Result "1/2-1/2"]
[Round "11"]
[TimeControl "180+1"]
[Date "2022.04.06"]
[WhiteClock "0:00:48"]
[BlackClock "0:00:35"]

1. e4 {[%clk 0:02:57]}  c6 {[%clk 0:02:59]} 2. d4 {[%clk 0:02:56]}  d5 {[%clk 0:03:00]} 3. e5 {[%clk 0:02:56]}  Bf5 {[%clk 0:02:59]} 4. h4 {[%clk 0:02:55]}  h5 {[%clk 0:02:58]} 5. Bd3 {[%clk 0:02:46]}  Bxd3 {[%clk 0:02:57]} 6. Qxd3 {[%clk 0:02:46]}  e6 {[%clk 0:02:58]} 7. Nf3 {[%clk 0:02:45]}  Be7 {[%clk 0:02:51]} 8. g3 {[%clk 0:02:39]}  Nh6 {[%clk 0:02:50]} 9. O-O {[%clk 0:02:35]}  Nf5 {[%clk 0:02:49]} 10. Kg2 {[%clk 0:02:24]}  c5 {[%clk 0:02:44]} 11. c3 {[%clk 0:02:22]}  Nc6 {[%clk 0:02:39]} 12. a3 {[%clk 0:02:09]}  Qb6 {[%clk 0:02:26]} 13. Rd1 {[%clk 0:02:06]}  Rc8 {[%clk 0:02:18]} 14. b4 {[%clk 0:02:03]}  cxd4 {[%clk 0:02:17]} 15. cxd4 {[%clk 0:02:02]}  O-O {[%clk 0:02:00]} 16. Bb2 {[%clk 0:01:52]}  a5 {[%clk 0:01:55]} 17. b5 {[%clk 0:01:52]}  Na7 {[%clk 0:01:50]} 18. a4 {[%clk 0:01:52]}  Rc7 {[%clk 0:01:50]} 19. Nbd2 {[%clk 0:01:48]}  Rfc8 {[%clk 0:01:49]} 20. Rdc1 {[%clk 0:01:48]}  Bb4 {[%clk 0:01:44]} 21. Nb3 {[%clk 0:01:47]}  Rxc1 {[%clk 0:01:42]} 22. Rxc1 {[%clk 0:01:44]}  Rxc1 {[%clk 0:01:42]} 23. Bxc1 {[%clk 0:01:44]}  Qc7 {[%clk 0:01:38]} 24. Bd2 {[%clk 0:01:44]}  Bxd2 {[%clk 0:01:35]} 25. Qxd2 {[%clk 0:01:39]}  b6 {[%clk 0:01:34]} 26. Ne1 {[%clk 0:01:24]}  Nc8 {[%clk 0:01:24]} 27. Qc2 {[%clk 0:01:19]}  Qc4 {[%clk 0:01:19]} 28. Nd2 {[%clk 0:01:07]}  Qxc2 {[%clk 0:00:59]} 29. Nxc2 {[%clk 0:01:08]}  f6 {[%clk 0:00:57]} 30. f4 {[%clk 0:01:04]}  Kf7 {[%clk 0:00:55]} 31. Kf3 {[%clk 0:01:00]}  Nce7 {[%clk 0:00:51]} 32. Nf1 {[%clk 0:00:57]}  Ke8 {[%clk 0:00:37]} 33. Nfe3 {[%clk 0:00:56]}  Kd7 {[%clk 0:00:35]} 34. Nd1 {[%clk 0:00:48]} 1/2-1/2


[Site "https://www.chess.com"]

[Event "Titled Tuesday Blitz April 05 Late 2022"]
[White "Herrera Reyes, Jose Antonio"]
[Black "Mikhailov, Viacheslav"]
[WhiteFideId "2274914"]
[BlackFideId "4187369"]
[WhiteElo "2361"]
[BlackElo "2381"]
[Result "1-0"]
[Round "11"]
[TimeControl "180+1"]
[Date "2022.04.05"]
[WhiteClock "0:01:20"]
[BlackClock "0:00:34"]

1. Nf3 {[%clk 0:03:00]}  Nf6 {[%clk 0:02:58]} 2. g3 {[%clk 0:02:59]}  g6 {[%clk 0:02:59]} 3. Bg2 {[%clk 0:03:00]}  Bg7 {[%clk 0:02:59]} 4. d3 {[%clk 0:03:01]}  O-O {[%clk 0:02:59]} 5. Nc3 {[%clk 0:03:02]}  d5 {[%clk 0:02:59]} 6. h4 {[%clk 0:03:02]}  c6 {[%clk 0:03:00]} 7. Bg5 {[%clk 0:03:00]}  Bg4 {[%clk 0:02:59]} 8. Qd2 {[%clk 0:03:00]}  Nbd7 {[%clk 0:02:59]} 9. Bh6 {[%clk 0:02:59]}  Qb6 {[%clk 0:02:58]} 10. Bxg7 {[%clk 0:02:57]}  Kxg7 {[%clk 0:02:59]} 11. h5 {[%clk 0:02:53]}  Bxf3 {[%clk 0:02:56]} 12. Bxf3 {[%clk 0:02:52]}  d4 {[%clk 0:02:51]} 13. hxg6 {[%clk 0:02:35]}  dxc3 {[%clk 0:02:44]} 14. Qh6+ {[%clk 0:02:34]}  Kg8 {[%clk 0:02:44]} 15. g7 {[%clk 0:02:17]}  cxb2 {[%clk 0:02:23]} 16. Rb1 {[%clk 0:02:17]}  Rfd8 {[%clk 0:02:03]} 17. Be4 {[%clk 0:02:08]}  Qxf2+ {[%clk 0:01:28]} 18. Kd1 {[%clk 0:02:07]}  Qf1+ {[%clk 0:01:01]} 19. Rxf1 {[%clk 0:02:06]}  Nxe4 {[%clk 0:01:01]} 20. dxe4 {[%clk 0:01:52]}  Nf6+ {[%clk 0:00:59]} 21. Ke1 {[%clk 0:01:52]}  Nxe4 {[%clk 0:00:54]} 22. Rxb2 {[%clk 0:01:48]}  Rd6 {[%clk 0:00:53]} 23. Qf4 {[%clk 0:01:47]}  Nf6 {[%clk 0:00:50]} 24. Rxb7 {[%clk 0:01:47]}  Re6 {[%clk 0:00:48]} 25. Rb8+ {[%clk 0:01:27]}  Rxb8 {[%clk 0:00:42]} 26. Qxb8+ {[%clk 0:01:27]}  Kxg7 {[%clk 0:00:43]} 27. Qxa7 {[%clk 0:01:28]}  Nd5 {[%clk 0:00:40]} 28. Qd4+ {[%clk 0:01:28]}  f6 {[%clk 0:00:41]} 29. a4 {[%clk 0:01:26]}  Kf7 {[%clk 0:00:39]} 30. a5 {[%clk 0:01:27]}  Nc7 {[%clk 0:00:39]} 31. Qc4 {[%clk 0:01:23]}  Ke8 {[%clk 0:00:34]} 32. Rh1 {[%clk 0:01:20]} 1-0


[Site "https://www.chess.com"]

[Event "Titled Tuesday Blitz April 05 Late 2022"]
[White "Hnydiuk, Aleksander"]
[Black "Arabidze, Meri"]
[WhiteFideId "1109057"]
[BlackFideId "13604040"]
[WhiteElo "2374"]
[BlackElo "2335"]
[Result "0-1"]
[Round "11"]
[TimeControl "180+1"]
[Date "2022.04.05"]
[WhiteClock "0:00:03"]
[BlackClock "0:00:20"]

1. e4 {[%clk 0:03:00]}  c5 {[%clk 0:02:55]} 2. Nf3 {[%clk 0:03:00]}  e6 {[%clk 0:02:56]} 3. d4 {[%clk 0:02:58]}  cxd4 {[%clk 0:02:57]} 4. Nxd4 {[%clk 0:02:59]}  Nc6 {[%clk 0:02:57]} 5. Nc3 {[%clk 0:02:59]}  a6 {[%clk 0:02:57]} 6. Nxc6 {[%clk 0:02:50]}  bxc6 {[%clk 0:02:58]} 7. Bd3 {[%clk 0:02:43]}  d5 {[%clk 0:02:58]} 8. O-O {[%clk 0:02:44]}  Nf6 {[%clk 0:02:58]} 9. Qf3 {[%clk 0:02:44]}  Be7 {[%clk 0:02:58]} 10. Qg3 {[%clk 0:02:43]}  O-O {[%clk 0:02:58]} 11. Bh6 {[%clk 0:02:40]}  Ne8 {[%clk 0:02:58]} 12. Bf4 {[%clk 0:02:38]}  Bh4 {[%clk 0:02:58]} 13. Qf3 {[%clk 0:02:29]}  Bg5 {[%clk 0:02:57]} 14. Bxg5 {[%clk 0:02:17]}  Qxg5 {[%clk 0:02:58]} 15. Na4 {[%clk 0:02:17]}  Nf6 {[%clk 0:02:32]} 16. c4 {[%clk 0:02:14]}  Rb8 {[%clk 0:02:23]} 17. Rfe1 {[%clk 0:02:03]}  Rd8 {[%clk 0:02:08]} 18. Rac1 {[%clk 0:01:45]}  e5 {[%clk 0:01:55]} 19. cxd5 {[%clk 0:01:33]}  cxd5 {[%clk 0:01:56]} 20. exd5 {[%clk 0:01:31]}  Nxd5 {[%clk 0:01:56]} 21. Rc5 {[%clk 0:01:04]}  Bb7 {[%clk 0:01:49]} 22. Be4 {[%clk 0:01:00]}  Nf4 {[%clk 0:01:12]} 23. Bxb7 {[%clk 0:00:54]}  Nd3 {[%clk 0:01:12]} 24. h4 {[%clk 0:00:24]}  Qe7 {[%clk 0:00:56]} 25. Rec1 {[%clk 0:00:09]}  Nxc1 {[%clk 0:00:35]} 26. Bd5 {[%clk 0:00:09]}  Rbc8 {[%clk 0:00:30]} 27. b4 {[%clk 0:00:06]}  Rxc5 {[%clk 0:00:25]} 28. bxc5 {[%clk 0:00:05]}  Ne2+ {[%clk 0:00:22]} 29. Qxe2 {[%clk 0:00:03]}  Rxd5 {[%clk 0:00:22]} 30. g3 {[%clk 0:00:03]}  Qe6 {[%clk 0:00:20]} 0-1


[Site "https://www.chess.com"]

[Event "Titled Tuesday Blitz April 05 Late 2022"]
[White "Hoffmann, Asa"]
[Black "Vovk, Orest"]
[WhiteFideId "2001470"]
[BlackFideId "14113490"]
[WhiteElo "2377"]
[BlackElo "2509"]
[Result "0-1"]
[Round "11"]
[TimeControl "180+1"]
[Date "2022.04.06"]
[WhiteClock "0:00:48"]
[BlackClock "0:00:20"]

1. d4 {[%clk 0:02:56]}  e5 {[%clk 0:02:51]} 2. Nf3 {[%clk 0:02:56]}  e4 {[%clk 0:02:46]} 3. Nfd2 {[%clk 0:02:55]}  e3 {[%clk 0:02:45]} 4. fxe3 {[%clk 0:02:54]}  d5 {[%clk 0:02:43]} 5. c4 {[%clk 0:02:53]}  Nf6 {[%clk 0:02:40]} 6. Nc3 {[%clk 0:02:52]}  Be7 {[%clk 0:02:36]} 7. cxd5 {[%clk 0:02:52]}  O-O {[%clk 0:02:35]} 8. e4 {[%clk 0:02:51]}  c6 {[%clk 0:02:29]} 9. dxc6 {[%clk 0:02:50]}  Nxc6 {[%clk 0:02:28]} 10. Nf3 {[%clk 0:02:47]}  Bb4 {[%clk 0:02:16]} 11. e5 {[%clk 0:02:43]}  Nd5 {[%clk 0:02:08]} 12. Qb3 {[%clk 0:02:40]}  Qa5 {[%clk 0:02:04]} 13. Bd2 {[%clk 0:02:39]}  Be6 {[%clk 0:02:04]} 14. Qc2 {[%clk 0:02:29]}  Rac8 {[%clk 0:01:42]} 15. e4 {[%clk 0:02:26]}  Nb6 {[%clk 0:01:36]} 16. a3 {[%clk 0:02:18]}  Rfd8 {[%clk 0:01:27]} 17. d5 {[%clk 0:02:08]}  Nxd5 {[%clk 0:01:15]} 18. exd5 {[%clk 0:02:08]}  Bxd5 {[%clk 0:01:15]} 19. Bd3 {[%clk 0:01:53]}  Bxf3 {[%clk 0:01:10]} 20. gxf3 {[%clk 0:01:52]}  Nd4 {[%clk 0:01:06]} 21. Bxh7+ {[%clk 0:01:51]}  Kh8 {[%clk 0:01:06]} 22. Qe4 {[%clk 0:01:51]}  Nb3 {[%clk 0:00:55]} 23. Rd1 {[%clk 0:01:49]}  Nxd2 {[%clk 0:00:54]} 24. Rxd2 {[%clk 0:01:43]}  Bxc3 {[%clk 0:00:54]} 25. bxc3 {[%clk 0:01:42]}  Qxc3 {[%clk 0:00:54]} 26. Qc2 {[%clk 0:01:15]}  Qxf3 {[%clk 0:00:34]} 27. Rxd8+ {[%clk 0:01:08]}  Rxd8 {[%clk 0:00:33]} 28. Rf1 {[%clk 0:01:08]}  Qe3+ {[%clk 0:00:32]} 29. Qe2 {[%clk 0:01:07]}  Qc3+ {[%clk 0:00:26]} 30. Kf2 {[%clk 0:01:06]}  Rd2 {[%clk 0:00:25]} 31. Be4 {[%clk 0:00:54]}  Qd4+ {[%clk 0:00:20]} 32. Kf3 {[%clk 0:00:51]}  Rxe2 {[%clk 0:00:20]} 33. Kxe2 {[%clk 0:00:50]}  Qxe4+ {[%clk 0:00:20]} 34. Kf2 {[%clk 0:00:50]}  Qxe5 {[%clk 0:00:20]} 35. Re1 {[%clk 0:00:49]}  Qxe1+ {[%clk 0:00:20]} 36. Kxe1 {[%clk 0:00:49]}  b5 {[%clk 0:00:20]} 37. Kd2 {[%clk 0:00:48]}  a5 {[%clk 0:00:20]} 38. Kc3 {[%clk 0:00:48]}  Kh7 {[%clk 0:00:20]} 39. Kd4 {[%clk 0:00:48]}  b4 {[%clk 0:00:20]} 40. a4 {[%clk 0:00:48]}  Kh6 {[%clk 0:00:20]} 41. Kc4 {[%clk 0:00:48]}  Kh5 {[%clk 0:00:20]} 42. Kb5 {[%clk 0:00:48]}  b3 {[%clk 0:00:20]} 43. Kxa5 {[%clk 0:00:48]}  b2 {[%clk 0:00:20]} 0-1


[Site "https://www.chess.com"]

[Event "Titled Tuesday Blitz April 05 Late 2022"]
[White "Iskusnyh, Sergei"]
[Black "Quintiliano Pinto, Renato R."]
[WhiteFideId "4120027"]
[BlackFideId "2117568"]
[WhiteElo "2492"]
[BlackElo "2439"]
[Result "0-1"]
[Round "11"]
[TimeControl "180+1"]
[Date "2022.04.05"]
[WhiteClock "0:00:17"]
[BlackClock "0:01:06"]

1. d4 {[%clk 0:03:00]}  Nf6 {[%clk 0:02:57]} 2. c4 {[%clk 0:03:00]}  e6 {[%clk 0:02:57]} 3. g3 {[%clk 0:03:00]}  d5 {[%clk 0:02:57]} 4. Bg2 {[%clk 0:03:00]}  Be7 {[%clk 0:02:56]} 5. Nf3 {[%clk 0:03:00]}  O-O {[%clk 0:02:57]} 6. O-O {[%clk 0:03:00]}  dxc4 {[%clk 0:02:57]} 7. Qa4 {[%clk 0:03:00]}  c6 {[%clk 0:02:54]} 8. Qxc4 {[%clk 0:02:58]}  b5 {[%clk 0:02:54]} 9. Qc2 {[%clk 0:02:51]}  Bb7 {[%clk 0:02:55]} 10. Nc3 {[%clk 0:02:50]}  Nbd7 {[%clk 0:02:53]} 11. Bg5 {[%clk 0:02:50]}  a6 {[%clk 0:02:52]} 12. Rad1 {[%clk 0:02:44]}  Qb6 {[%clk 0:02:50]} 13. Ne5 {[%clk 0:02:43]}  Rfe8 {[%clk 0:02:47]} 14. Nxd7 {[%clk 0:02:39]}  Nxd7 {[%clk 0:02:46]} 15. Bxe7 {[%clk 0:02:39]}  Rxe7 {[%clk 0:02:47]} 16. Ne4 {[%clk 0:02:38]}  Qc7 {[%clk 0:02:36]} 17. b4 {[%clk 0:02:33]}  a5 {[%clk 0:02:35]} 18. a3 {[%clk 0:02:32]}  axb4 {[%clk 0:02:35]} 19. axb4 {[%clk 0:02:32]}  Nb6 {[%clk 0:02:31]} 20. Nc5 {[%clk 0:02:27]}  Nc4 {[%clk 0:02:22]} 21. Ra1 {[%clk 0:02:27]}  Ree8 {[%clk 0:02:21]} 22. Qc3 {[%clk 0:02:06]}  h6 {[%clk 0:02:19]} 23. e3 {[%clk 0:02:05]}  Red8 {[%clk 0:02:15]} 24. h4 {[%clk 0:02:01]}  e5 {[%clk 0:02:10]} 25. dxe5 {[%clk 0:01:54]}  Rxa1 {[%clk 0:02:06]} 26. Rxa1 {[%clk 0:01:54]}  Bc8 {[%clk 0:02:07]} 27. f4 {[%clk 0:01:41]}  Bg4 {[%clk 0:02:05]} 28. Nb3 {[%clk 0:01:26]}  Qb6 {[%clk 0:02:02]} 29. Nd4 {[%clk 0:01:24]}  Nxe3 {[%clk 0:02:00]} 30. Qxe3 {[%clk 0:01:18]}  Qxd4 {[%clk 0:01:58]} 31. Qxd4 {[%clk 0:01:10]}  Rxd4 {[%clk 0:01:59]} 32. Bxc6 {[%clk 0:01:08]}  Rxb4 {[%clk 0:01:58]} 33. Ra8+ {[%clk 0:01:06]}  Kh7 {[%clk 0:01:58]} 34. Rb8 {[%clk 0:01:07]}  Rb1+ {[%clk 0:01:57]} 35. Kf2 {[%clk 0:01:07]}  Rb2+ {[%clk 0:01:55]} 36. Ke1 {[%clk 0:01:05]}  b4 {[%clk 0:01:51]} 37. Be4+ {[%clk 0:01:02]}  g6 {[%clk 0:01:51]} 38. Rb7 {[%clk 0:01:02]}  Re2+ {[%clk 0:01:46]} 39. Kf1 {[%clk 0:01:01]}  Rxe4 {[%clk 0:01:47]} 40. Rxf7+ {[%clk 0:01:01]}  Kg8 {[%clk 0:01:47]} 41. Rb7 {[%clk 0:00:59]}  h5 {[%clk 0:01:46]} 42. Kf2 {[%clk 0:00:51]}  Re2+ {[%clk 0:01:44]} 43. Kf1 {[%clk 0:00:50]}  Re3 {[%clk 0:01:41]} 44. Kf2 {[%clk 0:00:48]}  Rf3+ {[%clk 0:01:41]} 45. Kg2 {[%clk 0:00:49]}  b3 {[%clk 0:01:39]} 46. e6 {[%clk 0:00:49]}  Re3 {[%clk 0:01:37]} 47. Rb8+ {[%clk 0:00:46]}  Kg7 {[%clk 0:01:36]} 48. e7 {[%clk 0:00:46]}  Rxe7 {[%clk 0:01:32]} 49. Rxb3 {[%clk 0:00:46]}  Be6 {[%clk 0:01:29]} 50. Rb5 {[%clk 0:00:44]}  Bf5 {[%clk 0:01:28]} 51. Kf2 {[%clk 0:00:44]}  Rd7 {[%clk 0:01:28]} 52. Rb2 {[%clk 0:00:42]}  Rc7 {[%clk 0:01:28]} 53. Rb6 {[%clk 0:00:41]}  Kf7 {[%clk 0:01:27]} 54. Rd6 {[%clk 0:00:39]}  Be6 {[%clk 0:01:27]} 55. Rd2 {[%clk 0:00:38]}  Rc3 {[%clk 0:01:27]} 56. Rb2 {[%clk 0:00:37]}  Kf6 {[%clk 0:01:26]} 57. Kg2 {[%clk 0:00:36]}  Rb3 {[%clk 0:01:26]} 58. Rd2 {[%clk 0:00:35]}  Kf5 {[%clk 0:01:25]} 59. Re2 {[%clk 0:00:33]}  Bd5+ {[%clk 0:01:23]} 60. Kh2 {[%clk 0:00:33]}  Kg4 {[%clk 0:01:19]} 61. Re5 {[%clk 0:00:33]}  Rb2+ {[%clk 0:01:19]} 62. Kg1 {[%clk 0:00:33]}  Bf3 {[%clk 0:01:09]} 63. Rg5+ {[%clk 0:00:31]}  Kh3 {[%clk 0:01:09]} 64. Rxg6 {[%clk 0:00:30]}  Bg4 {[%clk 0:01:10]} 65. Rg5 {[%clk 0:00:25]}  Kxg3 {[%clk 0:01:09]} 66. Rb5 {[%clk 0:00:17]}  Rxb5 {[%clk 0:01:06]} 0-1


[Site "https://www.chess.com"]

[Event "Titled Tuesday Blitz April 05 Late 2022"]
[White "Jarocka, Liwia"]
[Black "Yurtseven, Melih"]
[WhiteFideId "21807558"]
[BlackFideId "6312160"]
[WhiteElo "2374"]
[BlackElo "2482"]
[Result "0-1"]
[Round "11"]
[TimeControl "180+1"]
[Date "2022.04.06"]
[WhiteClock "0:00:29"]
[BlackClock "0:00:53"]

1. e4 {[%clk 0:03:00]}  c6 {[%clk 0:02:52]} 2. d4 {[%clk 0:02:58]}  d5 {[%clk 0:02:52]} 3. Nd2 {[%clk 0:02:58]}  dxe4 {[%clk 0:02:51]} 4. Nxe4 {[%clk 0:02:55]}  Nf6 {[%clk 0:02:51]} 5. Nxf6+ {[%clk 0:02:56]}  exf6 {[%clk 0:02:52]} 6. c3 {[%clk 0:02:56]}  Bd6 {[%clk 0:02:52]} 7. Bd3 {[%clk 0:02:56]}  O-O {[%clk 0:02:52]} 8. Ne2 {[%clk 0:02:56]}  Re8 {[%clk 0:02:49]} 9. Qc2 {[%clk 0:02:57]}  h5 {[%clk 0:02:48]} 10. Be3 {[%clk 0:02:57]}  h4 {[%clk 0:02:46]} 11. O-O-O {[%clk 0:02:57]}  b5 {[%clk 0:02:45]} 12. Kb1 {[%clk 0:02:56]}  a5 {[%clk 0:02:45]} 13. Rhe1 {[%clk 0:02:49]}  b4 {[%clk 0:02:45]} 14. c4 {[%clk 0:02:48]}  a4 {[%clk 0:02:45]} 15. Qd2 {[%clk 0:02:38]}  Bc7 {[%clk 0:02:40]} 16. Bf4 {[%clk 0:02:16]}  Ba5 {[%clk 0:02:37]} 17. Qc1 {[%clk 0:02:08]}  b3 {[%clk 0:02:34]} 18. Bd2 {[%clk 0:02:08]}  Bxd2 {[%clk 0:02:32]} 19. Qxd2 {[%clk 0:02:08]}  a3 {[%clk 0:02:33]} 20. axb3 {[%clk 0:02:00]}  axb2 {[%clk 0:02:31]} 21. Qxb2 {[%clk 0:01:57]}  Na6 {[%clk 0:02:31]} 22. Nc1 {[%clk 0:01:50]}  Nb4 {[%clk 0:02:27]} 23. Qd2 {[%clk 0:01:47]}  Rb8 {[%clk 0:02:13]} 24. Na2 {[%clk 0:01:28]}  Nxa2 {[%clk 0:01:27]} 25. Kxa2 {[%clk 0:01:27]}  Be6 {[%clk 0:01:25]} 26. Bc2 {[%clk 0:01:18]}  Re7 {[%clk 0:01:22]} 27. d5 {[%clk 0:01:09]}  cxd5 {[%clk 0:01:16]} 28. cxd5 {[%clk 0:01:08]}  Rd7 {[%clk 0:01:12]} 29. Be4 {[%clk 0:01:02]}  f5 {[%clk 0:01:07]} 30. Bf3 {[%clk 0:01:01]}  Qb6 {[%clk 0:00:59]} 31. Qc2 {[%clk 0:00:43]}  Rc7 {[%clk 0:00:56]} 32. Qd2 {[%clk 0:00:30]}  Qxb3+ {[%clk 0:00:53]} 33. Ka1 {[%clk 0:00:29]} 0-1


[Site "https://www.chess.com"]

[Event "Titled Tuesday Blitz April 05 Late 2022"]
[White "Javakhadze, Zurab"]
[Black "Ovetchkin, Roman"]
[WhiteFideId "13603647"]
[BlackFideId "4119991"]
[WhiteElo "2381"]
[BlackElo "2409"]
[Result "0-1"]
[Round "11"]
[TimeControl "180+1"]
[Date "2022.04.05"]
[WhiteClock "0:00:06"]
[BlackClock "0:00:33"]

1. d4 {[%clk 0:03:00]}  Nf6 {[%clk 0:02:57]} 2. c4 {[%clk 0:03:00]}  g6 {[%clk 0:02:57]} 3. Nc3 {[%clk 0:03:01]}  Bg7 {[%clk 0:02:57]} 4. e4 {[%clk 0:03:01]}  d6 {[%clk 0:02:57]} 5. Nf3 {[%clk 0:03:02]}  O-O {[%clk 0:02:57]} 6. Be2 {[%clk 0:03:03]}  e5 {[%clk 0:02:57]} 7. Be3 {[%clk 0:03:03]}  Ng4 {[%clk 0:02:54]} 8. Bg5 {[%clk 0:03:02]}  f6 {[%clk 0:02:54]} 9. Bc1 {[%clk 0:03:02]}  Nc6 {[%clk 0:02:50]} 10. O-O {[%clk 0:03:02]}  exd4 {[%clk 0:02:49]} 11. Nxd4 {[%clk 0:03:02]}  f5 {[%clk 0:02:49]} 12. Nxc6 {[%clk 0:02:14]}  bxc6 {[%clk 0:02:50]} 13. h3 {[%clk 0:02:14]}  Ne5 {[%clk 0:02:33]} 14. exf5 {[%clk 0:02:02]}  gxf5 {[%clk 0:02:31]} 15. Bf4 {[%clk 0:01:35]}  Ng6 {[%clk 0:02:27]} 16. Qd2 {[%clk 0:01:25]}  Rb8 {[%clk 0:02:09]} 17. Bg5 {[%clk 0:01:21]}  Rxb2 {[%clk 0:02:06]} 18. Qc1 {[%clk 0:01:05]}  Qe8 {[%clk 0:01:28]} 19. Qxb2 {[%clk 0:01:02]}  f4 {[%clk 0:01:29]} 20. Bf3 {[%clk 0:00:45]}  Qe5 {[%clk 0:01:27]} 21. h4 {[%clk 0:00:40]}  Qxc3 {[%clk 0:01:19]} 22. Qxc3 {[%clk 0:00:36]}  Bxc3 {[%clk 0:01:19]} 23. Rac1 {[%clk 0:00:33]}  Bd4 {[%clk 0:01:18]} 24. Bxc6 {[%clk 0:00:31]}  Kg7 {[%clk 0:01:15]} 25. h5 {[%clk 0:00:31]}  Ne5 {[%clk 0:01:15]} 26. Be4 {[%clk 0:00:28]}  h6 {[%clk 0:01:09]} 27. Bh4 {[%clk 0:00:25]}  Bg4 {[%clk 0:01:05]} 28. Kh2 {[%clk 0:00:21]}  Bxh5 {[%clk 0:01:03]} 29. f3 {[%clk 0:00:20]}  Bf7 {[%clk 0:00:58]} 30. Bd5 {[%clk 0:00:17]}  Bg6 {[%clk 0:00:55]} 31. Rcd1 {[%clk 0:00:14]}  Bb6 {[%clk 0:00:53]} 32. Bf2 {[%clk 0:00:13]}  Nd3 {[%clk 0:00:50]} 33. Bxb6 {[%clk 0:00:11]}  axb6 {[%clk 0:00:51]} 34. Be4 {[%clk 0:00:10]}  Bxe4 {[%clk 0:00:50]} 35. fxe4 {[%clk 0:00:11]}  Ne5 {[%clk 0:00:50]} 36. Rb1 {[%clk 0:00:09]}  Kg6 {[%clk 0:00:50]} 37. Rfc1 {[%clk 0:00:09]}  Kg5 {[%clk 0:00:50]} 38. Rc3 {[%clk 0:00:10]}  Ra8 {[%clk 0:00:49]} 39. a3 {[%clk 0:00:09]}  Ra4 {[%clk 0:00:49]} 40. Rb4 {[%clk 0:00:10]}  Ra8 {[%clk 0:00:49]} 41. Rb1 {[%clk 0:00:09]}  h5 {[%clk 0:00:49]} 42. Kg1 {[%clk 0:00:09]}  Kg4 {[%clk 0:00:49]} 43. Kf2 {[%clk 0:00:09]}  Rf8 {[%clk 0:00:46]} 44. Rh1 {[%clk 0:00:09]}  h4 {[%clk 0:00:45]} 45. Rch3 {[%clk 0:00:08]}  Ng6 {[%clk 0:00:44]} 46. Rd1 {[%clk 0:00:08]}  Ra8 {[%clk 0:00:43]} 47. Rd5 {[%clk 0:00:08]}  Ne5 {[%clk 0:00:43]} 48. Rd1 {[%clk 0:00:08]}  Nxc4 {[%clk 0:00:41]} 49. Rdh1 {[%clk 0:00:07]}  Rh8 {[%clk 0:00:39]} 50. Rc3 {[%clk 0:00:07]}  b5 {[%clk 0:00:39]} 51. a4 {[%clk 0:00:07]}  c6 {[%clk 0:00:38]} 52. axb5 {[%clk 0:00:07]}  cxb5 {[%clk 0:00:39]} 53. Rb1 {[%clk 0:00:07]}  Ra8 {[%clk 0:00:39]} 54. Rxb5 {[%clk 0:00:05]}  Ra2+ {[%clk 0:00:40]} 55. Ke1 {[%clk 0:00:03]}  Ne3 {[%clk 0:00:40]} 56. Rc8 {[%clk 0:00:01]}  Nxg2+ {[%clk 0:00:40]} 57. Kd1 {[%clk 0:00:01]}  Ne3+ {[%clk 0:00:40]} 58. Kc1 {[%clk 0:00:01]}  h3 {[%clk 0:00:39]} 59. Rg8+ {[%clk 0:00:01]}  Kf3 {[%clk 0:00:39]} 60. Kb1 {[%clk 0:00:01]}  Re2 {[%clk 0:00:38]} 61. Rh5 {[%clk 0:00:02]}  h2 {[%clk 0:00:37]} 62. Rgh8 {[%clk 0:00:02]}  Ng4 {[%clk 0:00:37]} 63. Rh3+ {[%clk 0:00:02]}  Kg2 {[%clk 0:00:37]} 64. R3h4 {[%clk 0:00:03]}  Re1+ {[%clk 0:00:30]} 65. Kb2 {[%clk 0:00:02]}  h1=Q {[%clk 0:00:31]} 66. Rxg4+ {[%clk 0:00:01]}  Kf3 {[%clk 0:00:31]} 67. Rxh1 {[%clk 0:00:01]}  Rxh1 {[%clk 0:00:32]} 68. Rg6 {[%clk 0:00:02]}  Kxe4 {[%clk 0:00:31]} 69. Rxd6 {[%clk 0:00:02]}  f3 {[%clk 0:00:32]} 70. Re6+ {[%clk 0:00:03]}  Kd3 {[%clk 0:00:32]} 71. Rf6 {[%clk 0:00:04]}  Ke2 {[%clk 0:00:32]} 72. Kc2 {[%clk 0:00:04]}  f2 {[%clk 0:00:32]} 73. Re6+ {[%clk 0:00:05]}  Kf3 {[%clk 0:00:32]} 74. Rf6+ {[%clk 0:00:06]}  Ke3 {[%clk 0:00:32]} 75. Re6+ {[%clk 0:00:06]}  Kd4 {[%clk 0:00:33]} 76. Rf6 {[%clk 0:00:06]}  f1=Q {[%clk 0:00:33]} 0-1


[Site "https://www.chess.com"]